fUSD/lending_fUSD_20260207
["ID","MTS","AMOUNT","RATE_DAILY","PERIOD"]
[404706866,1770486638725,-264.02,0.00014528,2]
[404706867,1770486638735,-438.91061764,0.00014596,2]
[404706868,1770486638744,-151.0,0.00014634,2]
[404706869,1770486638754,-166.66,0.00014666,2]
[404706870,1770486638764,-250.0,0.0001471,2]
[404706871,1770486638774,-1000.0,0.00014927,2]
[404706872,1770486638785,-931.59,0.00015068,2]
[404706873,1770486638798,-500.0,0.00015147,2]
[404706874,1770486638808,-614.51163375,0.00015173,2]
[404706875,1770486638818,-500.0,0.00015173,2]
[404706876,1770486638828,-500.0,0.00015173,2]
[404706877,1770486638838,-502.1700093,0.00015173,2]
[404706878,1770486638848,-500.0,0.00015173,2]
[404706879,1770486638858,-500.0,0.00015173,2]
[404706880,1770486638867,-500.0,0.00015721,2]
[404706881,1770486638877,-931.59,0.00015753,2]
[404706882,1770486638887,-438.91061764,0.00016194,2]
[404706883,1770486638896,-1000.0,0.0001642,2]
[404706884,1770486638906,-931.59,0.00016438,2]
[404706885,1770486638916,-165.74,0.00016712,2]
[404706886,1770486638925,-500.0,0.00016773,2]
[404706887,1770486638935,-500.0,0.00016773,2]
[404706888,1770486638944,-500.0,0.00016773,2]
[404706889,1770486638954,-160.0,0.0001687,2]
[404706890,1770486638964,-500.0,0.00017,2]
[404706891,1770486638975,-199.47437005,0.00017104,2]
[404706892,1770486638985,-168.0,0.00017117,2]
[404706893,1770486638994,-1000.0,0.00017321,2]
[404706894,1770486639003,-1000.0,0.00017321,2]
[404706895,1770486639013,-1000.0,0.00017321,2]
[404706896,1770486639023,-168.0,0.00017323,2]
[404706897,1770486639034,-168.0,0.00017324,2]
[404706898,1770486639044,-168.0,0.00017611,2]
[404706899,1770486639054,-150.0,0.00017698,2]
[404706900,1770486639063,-2666.5494,0.00017708,2]
[404706901,1770486639074,-13393.0863,0.00017708,2]
[404706902,1770486639084,-168.0,0.00017718,2]
[404706903,1770486639095,-484.42085053,0.00017727,2]
[404706904,1770486639105,-284.14671465,0.00017753,2]
[404706905,1770486639114,-168.0,0.00017759,2]
[404706906,1770486639124,-438.91061764,0.00017791,2]
[404706907,1770486639133,-500.0,0.00017808,2]
[404706908,1770486639143,-500.0,0.00017808,2]
[404706909,1770486639152,-500.0,0.00017808,2]
[404706910,1770486639161,-500.0,0.00017808,2]
[404706911,1770486639170,-500.0,0.00017808,2]
[404706912,1770486639179,-500.0,0.00017808,2]
[404706913,1770486639189,-500.0,0.00017808,2]
[404706914,1770486639200,-500.0,0.00017808,2]
[404706915,1770486639209,-500.0,0.00017808,2]
[404706916,1770486639219,-500.0,0.00017808,2]
[404706917,1770486639228,-500.0,0.00017808,2]
[404706918,1770486639240,-500.0,0.00017808,2]
[404706919,1770486639249,-500.0,0.00017808,2]
[404706920,1770486639260,-500.0,0.00017808,2]
[404706921,1770486639270,-500.0,0.00017808,2]
[404706922,1770486639280,-500.0,0.00017808,2]
[404706923,1770486639290,-500.0,0.00017808,2]
[404706924,1770486639300,-500.0,0.00017808,2]
[404706925,1770486639310,-500.0,0.00017808,2]
[404706926,1770486639320,-581.12027655,0.00017808,2]
[404706927,1770486639330,-500.0,0.00017808,2]
[404706928,1770486639340,-500.0,0.00017808,2]
[404706929,1770486639350,-500.0,0.00017808,2]
[404706930,1770486639361,-500.0,0.00017808,2]
[404706931,1770486639371,-500.0,0.00017808,2]
[404706932,1770486639379,-385.08437362,0.00017808,2]
[404706933,1770486639395,-114.91562638,0.00017808,2]
[404706934,1770486639406,-500.0,0.00017808,2]
[404706935,1770486639415,-500.0,0.00017808,2]
[404706936,1770486639425,-101.79166451,0.00017808,2]
[404706937,1770486639438,-398.20833549,0.00017808,2]
[404706938,1770486639448,-500.0,0.00017808,2]
[404706939,1770486639460,-500.0,0.00017808,2]
[404706940,1770486639469,-500.0,0.00017808,2]
[404706941,1770486639479,-500.0,0.00017808,2]
[404706942,1770486639488,-500.0,0.00017808,2]
[404706943,1770486639497,-500.0,0.00017808,2]
[404706944,1770486639507,-500.0,0.00017808,2]
[404706945,1770486639517,-500.0,0.00017808,2]
[404706946,1770486639527,-500.0,0.00017808,2]
[404706947,1770486639536,-500.0,0.00017808,2]
[404706948,1770486639546,-500.0,0.00017808,2]
[404706949,1770486639556,-500.0,0.00017808,2]
[404706950,1770486639566,-500.0,0.00017808,2]
[404706951,1770486639575,-500.0,0.00017808,2]
[404706952,1770486639584,-500.0,0.00017808,2]
[404706953,1770486639593,-500.0,0.00017808,2]
[404706954,1770486639603,-500.0,0.00017808,2]
[404706955,1770486639612,-500.0,0.00017808,2]
[404706956,1770486639622,-500.0,0.00017808,2]
[404706957,1770486639631,-500.0,0.00017808,2]
[404706958,1770486639641,-500.0,0.00017808,2]
[404706959,1770486639651,-500.0,0.00017808,2]
[404706960,1770486639660,-500.0,0.00017808,2]
[404706961,1770486639670,-500.0,0.00017808,2]
[404706962,1770486639680,-500.0,0.00017808,2]
[404706963,1770486639690,-500.0,0.00017808,2]
[404706964,1770486639700,-500.0,0.00017808,2]
[404706965,1770486639709,-500.0,0.00017808,2]
[404706966,1770486639718,-500.0,0.00017808,2]
[404706967,1770486639728,-500.0,0.00017808,2]
[404706968,1770486639737,-500.0,0.00017808,2]
[404706969,1770486639747,-400.0,0.00017808,2]
[404706970,1770486639756,-500.0,0.00017808,2]
[404706971,1770486639765,-500.0,0.00017808,2]
[404706972,1770486639776,-500.0,0.00017808,2]
[404706973,1770486639798,-500.0,0.00017808,2]
[404706974,1770486639808,-500.0,0.00017808,2]
[404706975,1770486639818,-500.0,0.00017808,2]
[404706976,1770486639827,-500.0,0.00017808,2]
[404706977,1770486639837,-500.0,0.00017808,2]
[404706978,1770486639847,-500.0,0.00017863,2]
[404706979,1770486639856,-501.58240503,0.00017868,2]
[404706980,1770486639866,-501.52124127,0.00017868,2]
[404706981,1770486639875,-1500.0,0.00017868,2]
[404706982,1770486639885,-500.0,0.000179,2]
[404706983,1770486639895,-1000.0,0.00017912,2]
[404706984,1770486639905,-500.0,0.00017918,2]
[404706986,1770486639914,-500.0,0.00017972,2]
[404706987,1770486639923,-300.0,0.00017999,2]
[404706988,1770486639932,-300.0,0.00017999,2]
[404706989,1770486639943,-500.0,0.00018027,2]
[404706990,1770486639952,-168.0,0.00018067,2]
[404706991,1770486639962,-597.91426758,0.00018082,2]
[404706992,1770486639971,-168.0,0.0001809,2]
[404706993,1770486639980,-173.26,0.000181,7]
[404706994,1770486639990,-484.42085053,0.0001817,2]
[404706995,1770486640000,-168.0,0.00018304,2]
[404706996,1770486640010,-168.0,0.00018353,2]
[404706997,1770486640019,-2000.0,0.00018416,2]
[404706998,1770486640028,-484.42085053,0.00018613,2]
[404706999,1770486640037,-150.0,0.0001863,2]
[404707000,1770486640047,-168.0,0.00018706,2]
[404707001,1770486640056,-18154.5541621,0.000189,7]
[404707002,1770486640066,-2500.0,0.00018964,2]
[404707003,1770486640076,-507.0,0.00019,2]
[404707004,1770486640086,-484.42085053,0.00019056,2]
[404707005,1770486640095,-200.35961351,0.00019082,2]
[404707006,1770486640105,-250.0,0.00019178,2]
[404707007,1770486640115,-150.0,0.00019178,2]
[404707008,1770486640125,-150.71004244,0.00019178,2]
[404707009,1770486640136,-438.91061764,0.00019389,2]
[404707010,1770486640146,-484.42085053,0.00019499,2]
[404707011,1770486640157,-369.28825225,0.00019512,2]
[404707012,1770486640168,-20000.0,0.0001952,2]
[404707013,1770486640177,-287.66363463,0.00019726,2]
[404707014,1770486640189,-250.0,0.00019726,2]
[404707015,1770486640199,-400.0,0.0001997,2]
[404707016,1770486640211,-400.0,0.0001997,2]
[404707017,1770486640222,-400.0,0.0001997,2]
[404707018,1770486640232,-550.0,0.0001997,2]
[404707019,1770486640242,-350.0,0.00020274,2]
[404707020,1770486640251,-507.0,0.00020564,3]
[404707021,1770486640260,-494.49066866,0.00020822,2]
[404707022,1770486640271,-158.23779304,0.00020835,2]
[404707023,1770486640281,-300.0,0.0002087,2]
[404707024,1770486640290,-400.0,0.0002087,2]
[404707025,1770486640302,-400.0,0.0002087,2]
[404707026,1770486640312,-438.91061764,0.00020987,2]
[404707027,1770486640323,-300.0,0.00021614,2]
[404707028,1770486640333,-319.44104056,0.00021614,2]
[404707029,1770486640342,-33304.9777,0.000219,2]
[404707030,1770486640352,-1000.0,0.000219,2]
[404707031,1770486640361,-5000.0,0.00021918,2]
[404707032,1770486640372,-500.0,0.00021918,2]
[404707033,1770486640381,-500.0,0.00021973,2]
[404707034,1770486640395,-300.0,0.00021999,2]
[404707035,1770486640404,-500.0,0.00022028,2]
[404707036,1770486640415,-489.40689815,0.00022082,2]
[404707037,1770486640425,-507.0,0.00022128,4]
[404707038,1770486640435,-170.2742883,0.00022316,2]
[404707039,1770486640444,-199.47437005,0.00022486,2]
[404707040,1770486640455,-438.91061764,0.00022584,2]
[404707041,1770486640467,-165.74,0.00022603,2]
[404707042,1770486640476,-728.85,0.00022773,2]
[404707043,1770486640487,-158.23779304,0.00022919,2]
[404707044,1770486640497,-160.0,0.00023,2]
[404707045,1770486640508,-495.91332241,0.0002335,2]
[404707046,1770486640519,-507.0,0.00023692,6]
[404707047,1770486640529,-264.02,0.00023713,2]
[404707048,1770486640538,-168956.03,0.0002375,2]
[404707049,1770486640548,-169.853066,0.00023932,30]
[404707050,1770486640558,-163.0,0.00023976,3]
[404707051,1770486640568,-179.75,0.00024162,2]
[404707052,1770486640754,-438.91061764,0.00024182,2]
[404707053,1770486640763,-1341.461,0.00024225,2]
[404707054,1770486640773,-3483.0,0.00024225,2]
[404707055,1770486640782,-1411.0,0.00024225,2]
[404707056,1770486640791,-616.0,0.00024225,2]
[404707057,1770486640800,-1275.706,0.00024225,2]
[404707058,1770486640810,-251.149,0.00024225,2]
[404707059,1770486640819,-917.837,0.00024225,2]
[404707060,1770486640829,-1206.735,0.00024225,2]
[404707061,1770486640839,-267.0,0.00024225,2]
[404707062,1770486640848,-200.0,0.00024225,2]
[404707063,1770486640857,-151.0,0.00024225,2]
[404707064,1770486640867,-412.0,0.00024225,2]
[404707065,1770486640876,-229.965,0.00024225,2]
[404707066,1770486640886,-218.167,0.00024225,2]
[404707067,1770486640895,-250.0,0.00024225,2]
[404707068,1770486640912,-3255.0,0.00024225,2]
[404707069,1770486640921,-6584.0,0.00024225,2]
[404707070,1770486640930,-300.0,0.00024614,2]
[404707071,1770486640940,-289.68,0.00024658,2]
[404707072,1770486640949,-150.0,0.00024658,2]
[404707073,1770486640958,-158.23779304,0.00025002,2]
[404707074,1770486640967,-519.78,0.000251,14]
[404707075,1770486640977,-151.0,0.00025191,2]
[404707076,1770486640986,-150.0,0.00025191,2]
[404707077,1770486640996,-150.0,0.00025191,2]
[404707078,1770486641005,-150.0,0.00025191,2]
[404707079,1770486641015,-150.0,0.00025191,2]
[404707080,1770486641024,-150.0,0.00025191,2]
[404707081,1770486641033,-150.0,0.00025191,2]
[404707082,1770486641043,-150.0,0.00025191,2]
[404707083,1770486641052,-150.0,0.00025191,2]
[404707084,1770486641062,-150.0,0.00025191,2]
[404707085,1770486641070,-150.0,0.00025191,2]
[404707086,1770486641079,-150.0,0.00025191,2]
[404707087,1770486641087,-150.0,0.00025191,2]
[404707088,1770486641095,-150.0,0.00025191,2]
[404707089,1770486641103,-150.0,0.00025191,2]
[404707090,1770486641111,-150.0,0.00025191,2]
[404707091,1770486641119,-150.0,0.00025191,2]
[404707092,1770486641127,-246.0,0.00025191,2]
[404707093,1770486641135,-150.0,0.00025191,4]
[404707094,1770486641144,-150.0,0.00025191,4]
[404707095,1770486641153,-150.0,0.00025191,4]
[404707096,1770486641162,-150.0,0.00025191,4]
[404707097,1770486641172,-150.0,0.00025191,4]
[404707098,1770486641182,-150.0,0.00025191,4]
[404707099,1770486641192,-150.0,0.00025191,4]
[404707100,1770486641201,-150.0,0.00025191,4]
[404707101,1770486641211,-150.0,0.00025191,4]
[404707102,1770486641220,-150.0,0.00025191,4]
[404707103,1770486641229,-150.0,0.00025191,4]
[404707104,1770486641239,-150.0,0.00025191,5]
[404707105,1770486641249,-150.0,0.00025191,5]
[404707106,1770486641259,-225.0,0.00025191,5]
[404707107,1770486641268,-150.0,0.00025191,7]
[404707108,1770486641277,-150.0,0.00025191,7]
[404707109,1770486641286,-150.0,0.00025191,7]
[404707110,1770486641298,-150.0,0.00025191,7]
[404707111,1770486641308,-150.0,0.00025191,7]
[404707112,1770486641317,-150.0,0.00025191,8]
[404707113,1770486641326,-150.0,0.00025191,9]
[404707114,1770486641335,-193.0,0.00025191,10]
[404707115,1770486641345,-300.0,0.00025191,2]
[404707116,1770486641354,-150.0,0.00025191,2]
[404707117,1770486641363,-150.0,0.00025191,4]
[404707118,1770486641378,-150.0,0.00025191,4]
[404707119,1770486641392,-150.0,0.00025191,7]
[404707120,1770486641401,-300.0,0.00025191,2]
[404707121,1770486641410,-150.0,0.00025191,2]
[404707122,1770486641419,-150.0,0.00025191,4]
[404707123,1770486641431,-150.0,0.00025191,4]
[404707124,1770486641440,-150.0,0.00025191,7]
[404707125,1770486641449,-367.0,0.00025191,2]
[404707126,1770486641458,-150.0,0.00025191,2]
[404707127,1770486641467,-150.0,0.00025191,4]
[404707128,1770486641476,-150.0,0.00025191,4]
[404707129,1770486641486,-150.0,0.00025191,7]
[404707130,1770486641495,-507.0,0.00025256,7]
[404707131,1770486641503,-438.91061764,0.0002578,2]
[404707132,1770486641513,-150.0,0.0002589,2]
[404707133,1770486641522,-507.0,0.00026821,9]
[404707134,1770486641531,-196.27,0.00026868,2]
[404707135,1770486641540,-158.23779304,0.00027086,2]
[404707136,1770486641550,-150.0,0.00027185,2]
[404707137,1770486641559,-1335.0,0.00027225,2]
[404707138,1770486641568,-3482.0,0.00027225,2]
[404707139,1770486641577,-1411.0,0.00027225,2]
[404707140,1770486641586,-616.0,0.00027225,2]
[404707141,1770486641595,-1272.0,0.00027225,2]
[404707142,1770486641604,-917.0,0.00027225,2]
[404707143,1770486641614,-1206.0,0.00027225,2]
[404707144,1770486641623,-150.0,0.00027225,2]
[404707145,1770486641633,-150.0,0.00027225,2]
[404707146,1770486641641,-412.0,0.00027225,2]
[404707147,1770486641651,-150.0,0.00027225,2]
[404707148,1770486641659,-150.0,0.00027225,2]
[404707149,1770486641668,-150.0,0.00027225,2]
[404707150,1770486641678,-3254.0,0.00027225,2]
[404707151,1770486641687,-150.0,0.00027369,2]
[404707152,1770486641696,-438.91061764,0.00027378,2]
[404707153,1770486641705,-289.68,0.00027397,2]
[404707154,1770486641714,-300.0,0.00027397,2]
[404707155,1770486641723,-1000.0,0.00027397,20]
[404707156,1770486641733,-300.44649809,0.00027397,5]
[404707157,1770486641742,-150.0,0.00027397,5]
[404707158,1770486641752,-300.0,0.00027699,10]
[404707159,1770486641762,-199.47437005,0.00027868,2]
[404707160,1770486641771,-250.0,0.00027945,5]
[404707161,1770486641780,-160.0,0.00028,3]
[404707162,1770486641790,-396.32382,0.00028178,30]
[404707163,1770486641799,-507.0,0.00028385,10]
[404707164,1770486641808,-165.74,0.00028493,2]
[404707165,1770486641817,-350.0,0.00028493,5]
[404707166,1770486641826,-150.0,0.00028544,2]
[404707167,1770486641835,-438.91061764,0.00028975,2]
[404707168,1770486641845,-441.40961792,0.00029041,5]
[404707169,1770486641854,-158.23779304,0.00029169,2]
[404707170,1770486641865,-264.02,0.00029571,2]
[404707171,1770486641874,-507.0,0.00029949,12]
[404707172,1770486641883,-150.0,0.00029971,2]
[404707173,1770486641892,-500.0,0.00029999,2]
[404707174,1770486641902,-441.40919473,0.00029999,2]
[404707175,1770486641913,-500.0,0.00029999,2]
[404707176,1770486641922,-500.0,0.00029999,2]
[404707177,1770486641933,-490.01325015,0.00029999,2]
[404707178,1770486641942,-500.0,0.00029999,2]
[404707179,1770486641953,-500.0,0.00029999,2]
[404707180,1770486641963,-172.49090891,0.00029999,2]
[404707181,1770486641973,-289.68,0.00030137,2]
[404707182,1770486641983,-1335.0,0.00030225,2]
[404707183,1770486641993,-616.0,0.00030225,2]
[404707184,1770486642003,-312.607,0.00030225,2]
[404707185,1770486642014,-150.0,0.00030225,2]
[404707186,1770486642023,-179.75,0.00030296,2]
[404707187,1770486642032,-438.91061764,0.00030573,2]
[404707188,1770486642042,-17321.79655322,0.00031009,10]
[404707189,1770486642053,-158.23779307,0.00031253,2]
[404707190,1770486642063,-150.0,0.0003147,2]
[404707191,1770486642074,-507.0,0.00031513,13]
[404707192,1770486642083,-433.15,0.000317,14]
[404707193,1770486642092,-300.0,0.00031899,10]
[404707194,1770486642103,-256.701042,0.000319,5]
[404707195,1770486642113,-438.91061764,0.00032171,2]
[404707196,1770486642123,-255.87821251,0.00032192,30]
[404707197,1770486642133,-289.68,0.00032877,2]
[404707198,1770486642142,-172.94,0.000329,14]
[404707199,1770486642152,-604.57,0.000329,2]
[404707200,1770486642161,-150.0,0.00033043,2]
[404707201,1770486642172,-507.0,0.00033077,15]
[404707202,1770486642182,-170.2742883,0.00033161,5]
[404707203,1770486642192,-616.0,0.00033225,2]
[404707204,1770486642201,-199.47437005,0.00033249,2]
[404707205,1770486642211,-438.91061764,0.00033768,2]
[404707206,1770486642220,-200.0,0.000339,9]
[404707207,1770486642230,-728.85,0.00034313,2]
[404707208,1770486642239,-327.0,0.00034512,30]
[404707209,1770486642250,-507.0,0.00034641,16]
[404707210,1770486642260,-150.0,0.00034696,2]
[404707211,1770486642269,-12106.0,0.00034933,5]
[404707212,1770486642280,-300.0,0.00034999,10]
[404707213,1770486642290,-500.0,0.00035,2]
[404707214,1770486642299,-152.0,0.00035327,3]
[404707215,1770486642309,-438.91061764,0.00035366,2]
[404707216,1770486642318,-604.57,0.000355,2]
[404707217,1770486642328,-499.34299778,0.00035589,120]
[404707218,1770486642337,-1029.45407458,0.000356,30]
[404707219,1770486642346,-162.17,0.000356,4]
[404707220,1770486642355,-500.0,0.00035616,7]
[404707221,1770486642365,-500.0,0.00035616,2]
[404707222,1770486642374,-500.0,0.00035616,2]
[404707223,1770486642383,-500.0,0.00035616,2]
[404707224,1770486642396,-500.0,0.00035616,2]
[404707225,1770486642405,-500.0,0.00035616,2]
[404707226,1770486642414,-500.0,0.00035616,2]
[404707227,1770486642423,-500.0,0.00035616,2]
[404707228,1770486642433,-500.0,0.00035616,2]
[404707229,1770486642442,-392.91076555,0.00035616,2]
[404707230,1770486642452,-516.80996623,0.00035616,2]
[404707231,1770486642463,-500.0,0.00035616,7]
[404707232,1770486642473,-500.0,0.00035616,7]
[404707233,1770486642483,-500.0,0.00035616,7]
[404707234,1770486642494,-500.0,0.00035616,7]
[404707235,1770486642503,-500.0,0.00035616,7]
[404707236,1770486642513,-500.0,0.00035616,7]
[404707237,1770486642522,-500.0,0.00035616,7]
[404707238,1770486642532,-500.0,0.00035616,7]
[404707239,1770486642541,-500.0,0.00035616,7]
[404707240,1770486642551,-537.20795818,0.00035616,7]
[404707241,1770486642560,-500.0,0.00035616,120]
[404707242,1770486642570,-503.65347604,0.00035616,120]
[404707243,1770486642579,-500.0,0.00035616,2]
[404707244,1770486642589,-500.0,0.00035616,2]
[404707245,1770486642598,-500.0,0.00035616,2]
[404707246,1770486642608,-500.0,0.00035616,2]
[404707247,1770486642617,-500.0,0.00035616,2]
[404707248,1770486642626,-500.0,0.00035616,2]
[404707249,1770486642637,-500.0,0.00035616,2]
[404707250,1770486642648,-500.0,0.00035616,2]
[404707251,1770486642658,-500.0,0.00035616,2]
[404707252,1770486642669,-500.0,0.00035616,2]
[404707253,1770486642678,-500.0,0.00035616,2]
[404707254,1770486642687,-500.0,0.00035616,2]
[404707255,1770486642696,-500.0,0.00035616,2]
[404707256,1770486642706,-500.0,0.00035616,2]
[404707257,1770486642716,-500.0,0.00035616,2]
[404707258,1770486642725,-500.0,0.00035616,2]
[404707259,1770486642735,-500.0,0.00035616,2]
[404707260,1770486642745,-500.0,0.00035616,2]
[404707261,1770486642754,-500.0,0.00035616,2]
[404707262,1770486642764,-500.0,0.00035616,2]
[404707263,1770486642774,-500.0,0.00035616,2]
[404707264,1770486642783,-500.0,0.00035616,2]
[404707265,1770486642791,-235.69534901,0.00035616,2]
[404707266,1770486642801,-500.0,0.00035616,120]
[404707267,1770486642810,-532.92180253,0.00035616,120]
[404707268,1770486642819,-300.0,0.00035616,2]
[404707269,1770486642830,-300.0,0.00035616,2]
[404707270,1770486642839,-300.0,0.00035616,2]
[404707271,1770486642850,-300.0,0.00035616,2]
[404707272,1770486642861,-300.0,0.00035616,2]
[404707273,1770486642871,-300.0,0.00035616,2]
[404707274,1770486642880,-300.0,0.00035616,2]
[404707275,1770486642889,-300.0,0.00035616,2]
[404707276,1770486642898,-300.0,0.00035616,2]
[404707277,1770486642908,-300.0,0.00035616,2]
[404707278,1770486642918,-300.0,0.00035616,2]
[404707279,1770486642929,-300.0,0.00035616,2]
[404707280,1770486642938,-300.0,0.00035616,2]
[404707281,1770486642948,-388.09865491,0.00035616,2]
[404707282,1770486642958,-325.50892801,0.00035616,2]
[404707283,1770486642968,-500.0,0.00035616,120]
[404707284,1770486642979,-500.0,0.00035616,120]
[404707285,1770486642991,-500.0,0.00035616,120]
[404707286,1770486643001,-500.0,0.00035616,120]
[404707287,1770486643011,-500.0,0.00035616,120]
[404707288,1770486643020,-566.39812522,0.00035616,120]
[404707289,1770486643030,-500.0,0.00035616,2]
[404707290,1770486643040,-500.0,0.00035616,2]
[404707291,1770486643048,-500.0,0.00035616,2]
[404707292,1770486643057,-500.0,0.00035616,2]
[404707293,1770486643067,-500.0,0.00035616,2]
[404707294,1770486643076,-500.0,0.00035616,2]
[404707295,1770486643085,-500.0,0.00035616,2]
[404707296,1770486643094,-500.0,0.00035616,2]
[404707297,1770486643103,-500.0,0.00035616,2]
[404707298,1770486643111,-500.0,0.00035616,2]
[404707299,1770486643120,-500.0,0.00035616,2]
[404707300,1770486643130,-500.0,0.00035616,2]
[404707301,1770486643139,-389.34207351,0.00035616,2]
[404707302,1770486643149,-500.0,0.00035616,2]
[404707303,1770486643159,-500.0,0.00035616,2]
[404707304,1770486643169,-682.24,0.00035616,120]
[404707305,1770486643178,-682.24,0.00035616,120]
[404707306,1770486643187,-682.24,0.00035616,120]
[404707307,1770486643197,-682.24,0.00035616,120]
[404707308,1770486643206,-682.24,0.00035616,120]
[404707309,1770486643215,-682.24,0.00035616,120]
[404707310,1770486643225,-682.24,0.00035616,120]
[404707311,1770486643234,-682.24,0.00035616,120]
[404707312,1770486643245,-682.24,0.00035616,120]
[404707313,1770486643255,-682.24,0.00035616,120]
[404707314,1770486643264,-682.24,0.00035616,120]
[404707315,1770486643275,-682.24,0.00035616,120]
[404707316,1770486643284,-454.38660406,0.00035616,7]
[404707317,1770486643293,-289.68,0.00035616,2]
[404707318,1770486643303,-176.02,0.00035776,2]
[404707319,1770486643314,-200.0,0.000359,12]
[404707320,1770486643324,-300.0,0.0003597,2]
[404707321,1770486643335,-400.0,0.0003597,2]
[404707322,1770486643346,-396.17693118,0.00035988,13]
[404707323,1770486643354,-160.0,0.00036,120]
[404707324,1770486643364,-3770.8835204,0.00036033,2]
[404707325,1770486643373,-7059.3560816,0.00036033,2]
[404707326,1770486643383,-39043.699201,0.00036033,2]
[404707327,1770486643396,-492.8363728,0.00036033,2]
[404707328,1770486643406,-3390.9554478,0.00036033,2]
[404707329,1770486643415,-176.02,0.00036125,2]
[404707330,1770486643425,-1876.581,0.00036178,44]
[404707331,1770486643436,-234.597,0.00036178,44]
[404707332,1770486643445,-300.0,0.00036199,10]
[404707333,1770486643455,-507.0,0.00036205,18]
[404707334,1770486643468,-616.0,0.00036225,2]
[404707335,1770486643477,-150.0,0.0003643,2]
[404707336,1770486643487,-176.02,0.00036473,2]
[404707337,1770486643496,-604.57,0.000368,2]
[404707338,1770486643506,-500.0,0.00036822,2]
[404707339,1770486643517,-438.91061764,0.00036964,2]
[404707340,1770486643527,-191.89062244,0.000372,120]
[404707341,1770486643538,-507.0,0.00037769,19]
[404707342,1770486643548,-196.26026315,0.00037869,2]
[404707343,1770486643558,-150.0,0.00038252,2]
[404707344,1770486643567,-438.91061764,0.00038562,2]
[404707345,1770486643577,-199.47437005,0.00038631,2]
[404707346,1770486643586,-507.0,0.00039333,21]
[404707347,1770486643595,-500.0,0.00039524,2]
[404707348,1770486643605,-604.57,0.000396,30]
[404707350,1770486643614,-301.00005478,0.0003969,2]
[404707352,1770486643623,-301.07727531,0.0003969,2]
[404707353,1770486643633,-302.09009539,0.0003969,2]
[404707354,1770486643642,-301.35929653,0.0003969,2]
[404707355,1770486643651,-534.9150651,0.0003969,2]
[404707356,1770486643660,-301.12507782,0.0003969,2]
[404707357,1770486643669,-300.0,0.0003969,2]
[404707358,1770486643679,-300.0,0.0003969,2]
[404707359,1770486643689,-1000.0,0.00039734,2]
[404707360,1770486643698,-3390.9554478,0.00039958,2]
[404707361,1770486643707,-5800.0,0.00039997,14]
[404707362,1770486643717,-686.45,0.0004,120]
[404707363,1770486643726,-349.43,0.0004,120]
[404707364,1770486643735,-234.24,0.0004,120]
[404707365,1770486643745,-153.0,0.0004,120]
[404707366,1770486643755,-500.0,0.0004,2]
[404707367,1770486643764,-152.0,0.0004,120]
[404707368,1770486643773,-300.08015,0.00040049,98]